bitfinex/quotes_BTCUSD_20250922
["timestamp","ask_amount","ask_price","bid_price","bid_amount"]
[1758540834520,1.33419398,113020.0,113010.0,0.02928654]
[1758540837046,1.35743398,113020.0,113010.0,0.02928654]
[1758540837258,1.35941398,113020.0,113010.0,0.02928654]
[1758540838261,1.33617398,113020.0,113010.0,0.02928654]
[1758540839291,1.33399398,113020.0,113010.0,0.03236654]
[1758540839728,1.05539398,113020.0,113010.0,0.20934202]
[1758540839906,1.08762962,113020.0,113010.0,0.20934202]
[1758540840107,1.33399398,113020.0,113010.0,0.20934202]
[1758540840523,1.08762962,113020.0,113010.0,0.20934202]
[1758540840727,1.08762962,113020.0,113010.0,0.03236654]
[1758540840728,1.33399398,113020.0,113010.0,0.03236654]
[1758540840928,1.33399398,113020.0,113010.0,0.05006408]
[1758540841124,1.33399398,113020.0,113010.0,0.22703956]
[1758540841359,1.33399398,113020.0,113010.0,0.20934202]
[1758540841492,1.08762962,113020.0,113010.0,0.20934202]
[1758540841692,0.78241919,113020.0,113010.0,0.32476359]
[1758540843023,0.78209931,113020.0,113010.0,0.32277]
[1758540844749,0.78209931,113020.0,113010.0,0.3884049]
[1758540844934,0.60513948,113020.0,113010.0,0.3884049]
[1758540845265,0.78209931,113020.0,113010.0,0.3884049]
[1758540845712,0.60513948,113020.0,113010.0,0.3884049]
[1758540845933,1.05303355,113030.0,113020.0,0.20711173]
[1758540846142,0.79358424,113030.0,113020.0,0.3204014]
[1758540846350,0.03027434,113030.0,113020.0,0.3204014]
[1758540846562,0.01116365,113030.0,113020.0,0.3204014]
[1758540847412,0.01516365,113030.0,113020.0,0.3204014]
[1758540847622,0.19210782,113030.0,113020.0,0.3204014]
[1758540847827,0.43847218,113030.0,113020.0,0.3204014]
[1758540849723,0.26152801,113030.0,113020.0,0.3204014]
[1758540849938,0.43847218,113030.0,113020.0,0.3204014]
[1758540850559,0.44045218,113030.0,113020.0,0.3204014]
[1758540850770,0.46673218,113030.0,113020.0,0.3173214]
[1758540851183,0.47542937,113030.0,113020.0,0.3173214]
[1758540852125,0.47238937,113030.0,113020.0,0.3173214]
[1758540852325,0.22602501,113030.0,113020.0,0.3173214]
[1758540852695,0.47238937,113030.0,113020.0,0.3173214]
[1758540852879,0.47542937,113030.0,113020.0,0.3152414]
[1758540853304,0.47542937,113030.0,113020.0,0.2923814]
[1758540854146,0.47542937,113030.0,113020.0,0.3171714]
[1758540854958,0.22906501,113030.0,113020.0,0.3171714]
[1758540855161,0.47238937,113030.0,113020.0,0.3171714]
[1758540855706,0.47560937,113030.0,113020.0,0.3171714]
[1758540859320,0.47238937,113030.0,113020.0,0.3171714]
[1758540861503,0.47560937,113030.0,113020.0,0.3171714]
[1758540864515,0.47560937,113030.0,113020.0,0.3171714]
[1758540865218,0.47560937,113030.0,113020.0,0.2923814]
[1758540865402,0.20600501,113030.0,113020.0,0.11542157]
[1758540865641,0.72157373,113030.0,113020.0,0.11542157]
[1758540865848,0.17695983,113020.0,113010.0,0.52141038]
[1758540866068,0.66968855,113020.0,113010.0,0.45985647]
[1758540866268,0.69574855,113020.0,113010.0,0.45985647]
[1758540866446,0.97662855,113020.0,113010.0,0.18105647]
[1758540867823,0.97662855,113020.0,113010.0,0.18305647]
[1758540869602,0.97662855,113020.0,113010.0,0.36003195]
[1758540871022,0.69782855,113020.0,113010.0,0.36003195]
[1758540871246,0.45146419,113020.0,113010.0,0.38605195]
[1758540871472,0.44824419,113020.0,113010.0,0.38605195]
[1758540871676,0.42540419,113020.0,113010.0,0.38605195]
[1758540872642,0.44937419,113020.0,113010.0,0.38605195]
[1758540872847,0.44937419,113020.0,113010.0,0.20907647]
[1758540872848,0.45261419,113020.0,113010.0,0.20907647]
[1758540873454,0.45261419,113020.0,113010.0,0.38605195]
[1758540873905,0.45261419,113020.0,113010.0,0.20907647]
[1758540874137,0.69897855,113020.0,113010.0,0.20907647]
[1758540874774,0.69897855,113020.0,113010.0,0.38605195]
[1758540874983,0.69897855,113020.0,113010.0,0.20907647]
[1758540876003,0.69897855,113020.0,113010.0,0.38605195]
[1758540876415,0.45261419,113020.0,113010.0,0.38605195]
[1758540876608,0.45261419,113020.0,113010.0,0.20907647]
[1758540877196,0.55261419,113020.0,113010.0,0.20907647]
[1758540877604,0.55261419,113020.0,113010.0,0.18501647]
[1758540878367,0.55261419,113020.0,113010.0,0.36199195]
[1758540879145,0.30624983,113020.0,113010.0,0.36199195]
[1758540879372,0.55261419,113020.0,113010.0,0.38605195]
[1758540883050,0.55261419,113020.0,113010.0,0.20907647]
[1758540883271,0.79897855,113020.0,113010.0,0.20907647]
[1758540883476,0.79897855,113020.0,113010.0,0.46385647]
[1758540883701,0.79897855,113020.0,113010.0,0.64083195]
[1758540884810,0.30300983,113020.0,113010.0,0.66489195]
[1758540885044,0.54937419,113020.0,113010.0,0.66489195]
[1758540887042,0.27903983,113020.0,113010.0,0.66489195]
[1758540887394,0.52540419,113020.0,113010.0,0.66489195]
[1758540887719,0.54937419,113020.0,113010.0,0.66489195]
[1758540888232,0.54937419,113020.0,113010.0,0.48791647]
[1758540888445,0.55261419,113020.0,113010.0,0.66489195]
[1758540888844,0.50261419,113020.0,113010.0,0.66489195]
[1758540890077,0.47540419,113020.0,113010.0,0.66489195]
[1758540892037,0.47332419,113020.0,113010.0,0.66791195]
[1758540892654,0.22695983,113020.0,113010.0,0.66791195]
[1758540893055,0.05,113020.0,113010.0,0.66791195]
[1758540899028,0.05,113020.0,113010.0,0.38907195]
[1758540899242,0.22695983,113020.0,113010.0,0.38907195]
[1758540899444,0.58385946,113020.0,113010.0,0.46161647]
[1758540899867,0.58385946,113020.0,113010.0,0.63859195]
[1758540900276,0.58385946,113020.0,113010.0,0.36003195]
[1758540900736,0.58385946,113020.0,113010.0,0.63859195]
[1758540901533,0.58385946,113020.0,113010.0,0.36003195]
[1758540901690,0.58385946,113020.0,113010.0,0.63859195]
[1758540902208,0.61046621,113020.0,113010.0,0.63859195]
[1758540903237,0.61046621,113020.0,113010.0,0.46161647]
[1758540903585,0.61046621,113020.0,113010.0,0.18305647]
[1758540903797,0.62959628,113020.0,113010.0,0.46161647]
[1758540904206,0.62959628,113020.0,113010.0,0.63859195]
[1758540904425,0.62959628,113020.0,113010.0,0.18305647]
[1758540904558,0.62959628,113020.0,113010.0,0.46161647]
[1758540904981,0.62959628,113020.0,113010.0,0.63859195]
[1758540906221,0.62959628,113020.0,113010.0,0.46161647]
[1758540906784,0.62959628,113020.0,113010.0,0.43146457]
[1758540907335,0.62959628,113020.0,113010.0,0.60844005]
[1758540908995,0.30120665,113020.0,113010.0,0.63169005]
[1758540909196,0.61046621,113020.0,113010.0,0.63372005]
[1758540909406,0.62959628,113020.0,113010.0,0.63372005]
[1758540911613,0.62959628,113020.0,113010.0,0.45674457]
[1758540911815,0.62959628,113020.0,113010.0,0.36582967]
[1758540920299,0.30120665,113020.0,113010.0,0.36582967]
[1758540920577,0.61046621,113020.0,113010.0,0.36582967]
[1758540920784,0.62959628,113020.0,113010.0,0.36582967]
[1758540923141,0.62959628,113020.0,113010.0,0.002]
[1758540923381,0.66076142,113020.0,113010.0,0.002]
[1758540923585,0.68916405,113020.0,113010.0,0.002]
[1758540923942,0.71407171,113020.0,113010.0,0.002]
[1758540924342,0.96768405,113020.0,113010.0,0.002]
[1758540924515,0.97598189,113020.0,113010.0,0.002]
[1758540925337,0.68916405,113020.0,113010.0,0.002]
[1758540925887,0.96768405,113020.0,113010.0,0.002]
[1758540926293,1.00337401,113020.0,113010.0,0.002]
[1758540927256,0.97497138,113020.0,113010.0,0.002]
[1758540929014,0.69645138,113020.0,113010.0,0.002]
[1758540929205,0.97497138,113020.0,113010.0,0.002]
[1758540929406,0.69645138,113020.0,113010.0,0.002]
[1758540929978,0.97497138,113020.0,113010.0,0.002]
[1758540930179,0.94380624,113020.0,113010.0,0.002]
[1758540930815,0.66528624,113020.0,113010.0,0.002]
[1758540931446,0.94380624,113020.0,113010.0,0.002]
[1758540931658,0.66528624,113020.0,113010.0,0.002]
[1758540931865,0.55326665,113020.0,113010.0,0.00406]
[1758540932065,0.87960628,113020.0,113010.0,0.03032]
[1758540932274,0.88173628,113020.0,113010.0,0.02734]
[1758540932475,0.90462628,113020.0,113010.0,0.02734]
[1758540932848,0.90790628,113020.0,113010.0,0.02734]
[1758540933056,0.90786628,113020.0,113010.0,0.02734]
[1758540934309,0.62934628,113020.0,113010.0,0.002]
[1758540934675,0.90786628,113020.0,113010.0,0.002]
[1758540935063,0.90782802,113020.0,113010.0,0.002]
[1758540935486,0.62930802,113020.0,113010.0,0.002]
[1758540935707,0.90782802,113020.0,113010.0,0.002]
[1758540948246,0.90782802,113020.0,113010.0,0.002]
[1758540950996,0.9078518,113020.0,113010.0,0.002]
[1758540952486,0.8795518,113020.0,113010.0,0.03032]
[1758540952866,0.8816818,113020.0,113010.0,0.02734]
[1758540953099,0.9045718,113020.0,113010.0,0.02734]
[1758540953504,0.57618217,113020.0,113010.0,0.02734]
[1758540953639,0.9045718,113020.0,113010.0,0.02734]
[1758540954311,0.9078118,113020.0,113010.0,0.02734]
[1758540954716,1.07210005,113020.0,113010.0,0.02734]
[1758540957057,0.29770217,113020.0,113010.0,0.02734]
[1758540957243,0.55116217,113020.0,113010.0,0.02994]
[1758540957443,0.79750111,113020.0,113010.0,0.02994]
[1758540957756,0.55116217,113020.0,113010.0,0.02994]
[1758540957971,1.04885005,113020.0,113010.0,0.02688]
[1758540958146,1.04592005,113020.0,113010.0,0.02688]
[1758540958591,0.79958111,113020.0,113010.0,0.02688]
[1758540959253,1.04592005,113020.0,113010.0,0.02688]
[1758540960496,0.79958111,113020.0,113010.0,0.02688]
[1758540960964,0.82293111,113020.0,113010.0,0.02688]
[1758540961421,0.54445111,113020.0,113010.0,0.02688]
[1758540961627,0.82473111,113020.0,113010.0,0.02688]
[1758540962356,0.29811217,113020.0,113010.0,0.02688]
[1758540962564,0.82473111,113020.0,113010.0,0.02688]
[1758540963648,0.83877801,113020.0,113010.0,0.02688]
[1758540964671,0.28379907,113020.0,113010.0,0.22155302]
[1758540964886,0.08772365,113020.0,113010.0,0.20691548]
[1758540965096,0.08772365,113020.0,113010.0,0.36026499]
[1758540966658,0.51102242,113020.0,113010.0,0.33438499]
[1758540966861,0.51603242,113020.0,113010.0,0.33438499]
[1758540967055,0.53938242,113020.0,113010.0,0.33438499]
[1758540969449,0.53938242,113020.0,113010.0,0.33232499]
[1758540970231,0.53938242,113020.0,113010.0,0.35717499]
[1758540970614,0.51310242,113020.0,113010.0,0.35717499]
[1758540971030,0.51310242,113020.0,113010.0,0.36023499]
[1758540971251,0.51102242,113020.0,113010.0,0.36023499]
[1758540971444,0.26468348,113020.0,113010.0,0.36023499]
[1758540971695,0.51102242,113020.0,113010.0,0.36023499]
[1758540973029,0.33406259,113020.0,113010.0,0.36023499]
[1758540973458,0.08772365,113020.0,113010.0,0.36023499]
[1758540973676,0.33406259,113020.0,113010.0,0.36023499]
[1758540977473,0.08772365,113020.0,113010.0,0.36023499]
[1758540978827,0.08772365,113020.0,113010.0,0.64179499]
[1758540983511,0.33406259,113020.0,113010.0,0.64179499]
[1758540984525,0.08772365,113020.0,113010.0,0.64179499]
[1758540986932,0.08772365,113020.0,113010.0,0.64234499]
[1758540987109,0.08772365,113020.0,113010.0,0.64226499]
[1758540987696,0.0611169,113020.0,113010.0,0.64226499]
[1758540988112,0.0611169,113020.0,113010.0,0.64222499]
[1758540991323,0.0611169,113020.0,113010.0,0.36114499]
[1758540991506,0.0611169,113020.0,113010.0,0.64202499]
[1758540992329,0.0611169,113020.0,113010.0,0.64206499]
[1758540994175,0.0611169,113020.0,113010.0,0.36114499]
[1758540994745,0.0611169,113020.0,113010.0,0.64218499]
[1758540996835,0.0611169,113020.0,113010.0,0.36114499]
[1758540997018,0.0611169,113020.0,113010.0,0.64218499]
[1758540998814,0.0611169,113020.0,113010.0,0.36114499]
[1758540998994,0.0611169,113020.0,113010.0,0.64198499]
[1758541006148,0.0611169,113020.0,113010.0,0.64162499]
[1758541007156,0.0611169,113020.0,113010.0,0.64158499]
[1758541007778,0.31264584,113020.0,113010.0,0.61272499]
[1758541008143,0.33538584,113020.0,113010.0,0.61268499]
[1758541008344,0.36199209,113020.0,113010.0,0.61268499]
[1758541008557,0.36199209,113020.0,113010.0,0.61276499]
[1758541008998,0.53895192,113020.0,113010.0,0.61276499]
[1758541009418,0.36199209,113020.0,113010.0,0.61276499]
[1758541014302,0.36199209,113020.0,113010.0,0.63571499]
[1758541014741,0.11565315,113020.0,113010.0,0.63571499]
[1758541015106,0.11565315,113020.0,113010.0,0.63771499]
[1758541016376,0.11246315,113020.0,113010.0,0.63771499]
[1758541019212,0.11046315,113020.0,113010.0,0.63771499]
[1758541019424,0.11046315,113020.0,113010.0,0.64095499]
[1758541019425,0.08772315,113020.0,113010.0,0.64095499]
[1758541021151,0.08985315,113020.0,113010.0,0.64095499]
[1758541024177,0.08985315,113020.0,113010.0,0.63819499]
[1758541024404,0.29126298,113020.0,113010.0,0.35727499]
[1758541024593,0.11736315,113020.0,113010.0,0.63811499]
[1758541028112,0.11430315,113020.0,113010.0,0.63811499]
[1758541028319,0.08985315,113020.0,113010.0,0.63811499]
[1758541028462,0.08772315,113020.0,113010.0,0.64135499]
[1758541029983,0.08985315,113020.0,113010.0,0.35727499]
[1758541030188,0.29432298,113020.0,113010.0,0.63803499]
[1758541030595,0.11736315,113020.0,113010.0,0.63803499]
[1758541031212,0.11736315,113020.0,113010.0,0.63795499]
[1758541031391,0.11430315,113020.0,113010.0,0.63795499]
[1758541032244,0.29126298,113020.0,113010.0,0.35727499]
[1758541032462,0.29126298,113020.0,113010.0,0.63795499]
[1758541032748,0.44269573,113020.0,113010.0,0.63795499]
[1758541035204,0.44563573,113020.0,113010.0,0.63795499]
[1758541035964,0.62259556,113020.0,113010.0,0.35727499]
[1758541036308,0.62259556,113020.0,113010.0,0.63783499]
[1758541036500,0.44563573,113020.0,113010.0,0.63783499]
[1758541037678,0.44269573,113020.0,113010.0,0.63783499]
[1758541038092,0.59814556,113020.0,113010.0,0.15534951]
[1758541038300,0.29354298,113020.0,113010.0,0.43578951]
[1758541038507,0.62193556,113020.0,113010.0,0.43578951]
[1758541038710,0.64106418,113020.0,113010.0,0.43578951]
[1758541040482,0.64106418,113020.0,113010.0,0.36770967]
[1758541044246,0.64106418,113020.0,113010.0,0.002]
[1758541044446,0.92146418,113020.0,113010.0,0.002]
[1758541044852,0.64106418,113020.0,113010.0,0.002]
[1758541045049,0.92150418,113020.0,113010.0,0.002]
[1758541045258,0.92146418,113020.0,113010.0,0.002]
[1758541046743,0.5929916,113020.0,113010.0,0.002]
[1758541046875,0.92138418,113020.0,113010.0,0.002]
[1758541047076,0.64106418,113020.0,113010.0,0.002]
[1758541047273,0.92214418,113020.0,113010.0,0.002]
[1758541047886,0.64054418,113020.0,113010.0,0.002]
[1758541048109,0.92170418,113020.0,113010.0,0.002]
[1758541048359,0.5933116,113020.0,113010.0,0.002]
[1758541048508,0.92170418,113020.0,113010.0,0.002]
[1758541049510,0.64054418,113020.0,113010.0,0.002]
[1758541049716,0.92166418,113020.0,113010.0,0.002]
[1758541050706,0.64054418,113020.0,113010.0,0.002]
[1758541050917,0.2888816,113020.0,113010.0,0.18110548]
[1758541051124,0.59520556,113020.0,113010.0,0.20606548]
[1758541051323,0.08772315,113020.0,113010.0,0.20606548]
[1758541051475,0.41611573,113020.0,113010.0,0.29437515]
[1758541051675,0.59307556,113020.0,113010.0,0.29437515]
[1758541052281,0.41611573,113020.0,113010.0,0.29437515]
[1758541053223,0.59307556,113020.0,113010.0,0.29437515]
[1758541053597,0.59307556,113020.0,113010.0,0.36175739]
[1758541055472,0.59508556,113020.0,113010.0,0.35871739]
[1758541055886,0.59508556,113020.0,113010.0,0.36175739]
[1758541058502,0.59508556,113020.0,113010.0,0.64367739]
[1758541059233,0.41812573,113020.0,113010.0,0.64367739]
[1758541059569,0.59508556,113020.0,113010.0,0.36175739]
[1758541059768,0.59508556,113020.0,113010.0,0.64039739]
[1758541060192,0.61835556,113020.0,113010.0,0.64039739]
[1758541060827,0.61835556,113020.0,113010.0,0.35871739]
[1758541061011,0.61835556,113020.0,113010.0,0.64039739]
[1758541062793,0.61835556,113020.0,113010.0,0.35871739]
[1758541063009,0.62137556,113020.0,113010.0,0.64031739]
[1758541063810,0.61835556,113020.0,113010.0,0.64031739]
[1758541065174,0.61835556,113020.0,113010.0,0.57293515]
[1758541067351,0.63747578,113020.0,113010.0,0.57293515]
[1758541069568,0.61835556,113020.0,113010.0,0.57293515]
[1758541069786,0.46051693,113020.0,113010.0,0.57293515]
[1758541070001,0.44139573,113020.0,113010.0,0.57293515]
[1758541071706,0.44139573,113020.0,113010.0,0.29133515]
[1758541071914,0.44139573,113020.0,113010.0,0.57241515]
[1758541072423,0.61835556,113020.0,113010.0,0.57241515]
[1758541072622,0.63747676,113020.0,113010.0,0.57241515]
[1758541072926,0.63747676,113020.0,113010.0,0.57229515]
[1758541074412,0.63747676,113020.0,113010.0,0.29133515]
[1758541074612,0.64049676,113020.0,113010.0,0.08939967]
[1758541074822,0.64049676,113020.0,113010.0,0.36806967]
[1758541075664,0.64049676,113020.0,113010.0,0.54504515]
[1758541076566,0.80480624,113020.0,113010.0,0.54504515]
[1758541077993,0.80480624,113020.0,113010.0,0.36806967]
[1758541078377,0.80480624,113020.0,113010.0,0.43353141]
[1758541080916,1.05115727,113020.0,113010.0,0.002]
[1758541081133,1.08232241,113020.0,113010.0,0.002]
[1758541081807,1.08232241,113020.0,113010.0,0.17897548]
[1758541081808,0.80480624,113020.0,113010.0,0.17897548]
[1758541082009,0.28581418,113020.0,113010.0,0.18095548]
[1758541082235,0.75738504,113020.0,113010.0,0.20807548]
[1758541082448,1.05702624,113020.0,113010.0,0.29334515]
[1758541082599,1.05898624,113020.0,113010.0,0.29334515]
[1758541082821,1.08277624,113020.0,113010.0,0.29035515]
[1758541083179,1.08573624,113020.0,113010.0,0.29035515]
[1758541085518,1.08569624,113020.0,113010.0,0.29035515]
[1758541086330,0.80521624,113020.0,113010.0,0.29035515]
[1758541086529,0.80225624,113020.0,113010.0,0.29035515]
[1758541087174,0.80521624,113020.0,113010.0,0.29035515]
[1758541088370,0.80521624,113020.0,113010.0,0.56869515]
[1758541088629,0.80521624,113020.0,113010.0,0.57067515]
[1758541090121,0.31251418,113020.0,113010.0,0.56869515]
[1758541090360,0.78609504,113020.0,113010.0,0.56869515]
[1758541090572,0.80521624,113020.0,113010.0,0.36754967]
[1758541090778,0.80521624,113020.0,113010.0,0.36746967]
[1758541092567,0.80521624,113020.0,113010.0,0.002]
[1758541092779,1.05156727,113020.0,113010.0,0.002]
[1758541098087,1.05156727,113020.0,113010.0,0.002]
[1758541099900,1.08273164,113020.0,113010.0,0.002]
[1758541101252,1.3982616,113020.0,113010.0,0.002]
[1758541101808,1.40655855,113020.0,113010.0,0.002]
[1758541102370,1.3982616,113020.0,113010.0,0.002]
[1758541103318,1.3982216,113020.0,113010.0,0.002]
[1758541106149,1.1184216,113020.0,113010.0,0.002]
[1758541106300,1.3981416,113020.0,113010.0,0.002]
[1758541106723,1.1184216,113020.0,113010.0,0.002]
[1758541106946,1.3981416,113020.0,113010.0,0.002]
[1758541107823,1.36697723,113020.0,113010.0,0.002]
[1758541108034,0.8141562,113020.0,113010.0,0.002]
[1758541108251,1.1169462,113020.0,113010.0,0.002]
[1758541108460,0.8402062,113020.0,113010.0,0.02519]
[1758541108658,0.77650624,113020.0,113010.0,0.18419548]
[1758541108867,1.05614624,113020.0,113010.0,0.20738548]
[1758541110592,0.77650624,113020.0,113010.0,0.20738548]
[1758541110863,1.05614624,113020.0,113010.0,0.20738548]
[1758541111194,0.77650624,113020.0,113010.0,0.20738548]
[1758541111582,1.05602624,113020.0,113010.0,0.20738548]
[1758541113570,0.77650624,113020.0,113010.0,0.20738548]
[1758541113795,1.05598624,113020.0,113010.0,0.20738548]
[1758541115191,0.77650624,113020.0,113010.0,0.20738548]
[1758541115365,1.05598624,113020.0,113010.0,0.20738548]
[1758541120702,0.77650624,113020.0,113010.0,0.20738548]
[1758541120940,1.05590624,113020.0,113010.0,0.20738548]
[1758541121138,1.08391624,113020.0,113010.0,0.002]
[1758541124663,1.33026727,113020.0,113010.0,0.002]
[1758541128693,1.05666624,113020.0,113010.0,0.20417548]
[1758541128873,1.05666624,113020.0,113010.0,0.20738548]
[1758541129225,1.08467624,113020.0,113010.0,0.0272]
[1758541129472,1.08467624,113020.0,113010.0,0.002]
[1758541130309,1.33102727,113020.0,113010.0,0.002]
[1758541130513,1.36671723,113020.0,113010.0,0.002]
[1758541133580,1.1203662,113020.0,113010.0,0.002]
[1758541136756,0.95619483,113020.0,113010.0,0.002]
[1758541137175,0.67603483,113020.0,113010.0,0.002]
[1758541137404,0.95599483,113020.0,113010.0,0.002]
[1758541138259,0.67603483,113020.0,113010.0,0.002]
[1758541138703,0.95591483,113020.0,113010.0,0.002]
[1758541141422,0.67603483,113020.0,113010.0,0.002]
[1758541141639,0.92974483,113020.0,113010.0,0.00702]
[1758541141840,0.92974483,113020.0,113010.0,0.03087]
[1758541142044,0.95379483,113020.0,113010.0,0.02782]
[1758541142243,0.95703483,113020.0,113010.0,0.02782]
[1758541144140,0.95703483,113020.0,113010.0,0.002]
[1758541153116,0.67727483,113020.0,113010.0,0.002]
[1758541153299,0.95671483,113020.0,113010.0,0.002]
[1758541153603,0.67727483,113020.0,113010.0,0.002]
[1758541153813,0.95671483,113020.0,113010.0,0.002]
[1758541154314,0.67727483,113020.0,113010.0,0.002]
[1758541154525,0.61753487,113020.0,113010.0,0.002]
[1758541154737,0.61429487,113020.0,113010.0,0.02958]
[1758541154946,0.89373487,113020.0,113010.0,0.02958]
[1758541155576,0.89373487,113020.0,113010.0,0.0265]
[1758541155781,0.91872487,113020.0,113010.0,0.0265]
[1758541156191,0.59019418,113020.0,113010.0,0.0265]
[1758541156457,0.91872487,113020.0,113010.0,0.0265]
[1758541157279,0.63928487,113020.0,113010.0,0.0265]
[1758541157506,0.89177487,113020.0,113010.0,0.20655548]
[1758541158348,0.89388487,113020.0,113010.0,0.20655548]
[1758541158691,0.89177487,113020.0,113010.0,0.20655548]
[1758541160475,0.89177487,113020.0,113010.0,0.02958]
[1758541160903,0.89177487,113020.0,113010.0,0.20655548]
[1758541161309,0.56324418,113020.0,113010.0,0.20655548]
[1758541161541,0.89177487,113020.0,113010.0,0.20655548]
[1758541162167,0.89177487,113020.0,113010.0,0.02958]
[1758541162555,0.89388487,113020.0,113010.0,0.0265]
[1758541162765,0.91887487,113020.0,113010.0,0.0265]
[1758541163695,0.91887487,113020.0,113010.0,0.20347548]
[1758541164076,0.91887487,113020.0,113010.0,0.0265]
[1758541164829,0.89388487,113020.0,113010.0,0.00399]
[1758541165031,0.28380418,113020.0,113010.0,0.20655548]
[1758541165640,0.26468298,113020.0,113010.0,0.20655548]
[1758541166240,0.59321367,113020.0,113010.0,0.20655548]
[1758541166402,0.28380418,113020.0,113010.0,0.20655548]
[1758541166607,0.59321367,113020.0,113010.0,0.20655548]
[1758541166831,0.61233487,113020.0,113010.0,0.20655548]
[1758541167801,0.61233487,113020.0,113010.0,0.02958]
[1758541168197,0.61233487,113020.0,113010.0,0.038425]
[1758541169324,0.61444487,113020.0,113010.0,0.038425]
[1758541170581,0.61444487,113020.0,113010.0,0.012835]
[1758541170960,0.63743487,113020.0,113010.0,0.036505]
[1758541173526,0.64038487,113020.0,113010.0,0.010845]
[1758541173754,0.67154924,113020.0,113010.0,0.010845]
[1758541173960,0.68606015,113020.0,113010.0,0.010845]
[1758541174144,0.70264324,113020.0,113010.0,0.010845]
[1758541174343,0.73833093,113020.0,113010.0,0.010845]
[1758541175809,0.70716656,113020.0,113010.0,0.010845]
[1758541176013,0.73833093,113020.0,113010.0,0.010845]
[1758541177323,0.72175011,113020.0,113010.0,0.010845]
[1758541178318,0.69058574,113020.0,113010.0,0.010845]
[1758541178517,0.72175011,113020.0,113010.0,0.010845]
[1758541181471,0.69058574,113020.0,113010.0,0.010845]
[1758541181682,0.96998574,113020.0,113010.0,0.010845]
[1758541181897,0.96997918,113020.0,113010.0,0.010845]
[1758541182106,0.69057918,113020.0,113010.0,0.010845]
[1758541182313,0.96169379,113020.0,113010.0,0.010845]
[1758541183203,0.68229379,113020.0,113010.0,0.010845]
[1758541183412,0.96169379,113020.0,113010.0,0.010845]
[1758541184030,0.68229379,113020.0,113010.0,0.010845]
[1758541184209,0.96169379,113020.0,113010.0,0.010845]
[1758541184789,0.95547483,113020.0,113010.0,0.010845]
[1758541186630,0.67607483,113020.0,113010.0,0.010845]
[1758541186847,0.95547483,113020.0,113010.0,0.010845]
[1758541188476,0.67607483,113020.0,113010.0,0.010845]
[1758541188719,0.95547483,113020.0,113010.0,0.010845]
[1758541192915,0.62694414,113020.0,113010.0,0.010845]
[1758541193087,0.95547483,113020.0,113010.0,0.010845]
[1758541197049,0.95419238,113020.0,113010.0,0.010845]
[1758541197779,0.96869321,113020.0,113010.0,0.010845]
[1758541198578,1.37938073,113020.0,113010.0,0.010845]
[1758541199994,0.64016252,113020.0,113010.0,0.010845]
[1758541200195,1.37938073,113020.0,113010.0,0.010845]
[1758541200735,1.09998073,113020.0,113010.0,0.010845]
[1758541200876,1.13293466,113020.0,113010.0,0.010845]
[1758541202361,1.13294016,113020.0,113010.0,0.010845]
[1758541203809,1.13294617,113020.0,113010.0,0.010845]
[1758541204487,0.85358617,113020.0,113010.0,0.010845]
[1758541204694,1.13294617,113020.0,113010.0,0.010845]
[1758541207904,1.13294871,113020.0,113010.0,0.010845]
[1758541208136,1.12788871,113020.0,113010.0,0.010845]
[1758541208329,1.13288871,113020.0,113010.0,0.010845]
[1758541209296,0.36071657,113020.0,113010.0,0.010845]
[1758541209509,1.13288871,113020.0,113010.0,0.010845]
[1758541210116,0.85352871,113020.0,113010.0,0.010845]
[1758541210316,1.13288871,113020.0,113010.0,0.010845]
[1758541214252,1.13289035,113020.0,113010.0,0.010845]
[1758541216323,1.16405472,113020.0,113010.0,0.010845]
[1758541216529,1.41046079,113020.0,113010.0,0.010845]
[1758541216759,1.37929642,113020.0,113010.0,0.010845]
[1758541217195,1.37929642,113020.0,113010.0,0.008845]
[1758541217402,1.37929642,113020.0,113010.0,0.009845]
[1758541217614,1.13289035,113020.0,113010.0,0.012845]
[1758541218209,1.13289206,113020.0,113010.0,0.012845]
[1758541218380,1.57189206,113020.0,113010.0,0.012845]
[1758541220112,1.57189321,113020.0,113010.0,0.012845]
[1758541222608,1.57189391,113020.0,113010.0,0.012845]
[1758541223596,1.60305828,113020.0,113010.0,0.012845]
[1758541224168,1.84946435,113020.0,113010.0,0.012845]
[1758541226130,1.8660674,113020.0,113010.0,0.012845]
[1758541226337,1.83490303,113020.0,113010.0,0.012845]
[1758541226702,1.8660674,113020.0,113010.0,0.012845]
[1758541227433,1.89447003,113020.0,113010.0,0.012845]
[1758541227678,1.89447491,113020.0,113010.0,0.012845]
[1758541229110,2.14088098,113020.0,113010.0,0.012845]
[1758541229310,2.81223279,113020.0,113010.0,0.012845]
[1758541229510,2.86223279,113020.0,113010.0,0.012845]
[1758541229739,2.92968878,113020.0,113010.0,0.012845]
[1758541230384,0.94459632,113010.0,113000.0,0.00044]
[1758541230597,1.06209136,113010.0,113000.0,0.00044]
[1758541230811,1.46548136,113010.0,113000.0,0.00044]
[1758541231154,1.09748927,113010.0,113000.0,0.00044]
[1758541231358,1.47244927,113010.0,113000.0,0.00044]
[1758541231534,1.2260432,113010.0,113000.0,0.00044]
[1758541231771,0.9483532,113010.0,113000.0,0.00044]
[1758541231907,0.91918883,113010.0,113000.0,0.00044]
[1758541232126,1.29414883,113010.0,113000.0,0.00044]
[1758541232337,0.8907862,113010.0,113000.0,0.00044]
[1758541232566,1.26573466,113010.0,113000.0,0.00044]
[1758541232934,0.89077466,113010.0,113000.0,0.00044]
[1758541233234,1.26573466,113010.0,113000.0,0.00044]
[1758541234159,0.89077466,113010.0,113000.0,0.00044]
[1758541234357,0.89076665,113010.0,113000.0,0.00044]
[1758541234765,1.16383159,113010.0,113000.0,0.00044]
[1758541234982,1.26572665,113010.0,113000.0,0.00044]
[1758541236082,0.89076665,113010.0,113000.0,0.00044]
[1758541236303,1.26572665,113010.0,113000.0,0.00044]
[1758541236502,1.35099632,113010.0,113000.0,0.00044]
[1758541238028,1.35095057,113010.0,113000.0,0.00044]
[1758541238231,0.97599057,113010.0,113000.0,0.00044]
[1758541238441,1.2656809,113010.0,113000.0,0.00044]
[1758541238576,0.8907209,113010.0,113000.0,0.00044]
[1758541238757,1.2656809,113010.0,113000.0,0.00044]
[1758541239175,0.8907209,113010.0,113000.0,0.00044]
[1758541239481,1.18133511,113010.0,113000.0,0.00044]
[1758541240233,1.18133323,113010.0,113000.0,0.00044]
[1758541241034,0.68852109,113010.0,113000.0,0.00044]
[1758541241262,1.18133323,113010.0,113000.0,0.00044]
[1758541241389,1.62257597,113010.0,113000.0,0.00044]
[1758541241748,1.6847016,113010.0,113000.0,0.00044]
[1758541242098,1.71586597,113010.0,113000.0,0.00044]